bitfinex/quotes_ETHUSD_20260130
["timestamp","ask_amount","ask_price","bid_price","bid_amount"]
[1769793060814,15.20007009,2719.8,2719.0,0.002]
[1769793061015,15.20007009,2719.8,2718.8,0.002]
[1769793062249,13.50988486,2719.0,2718.0,0.01107808]
[1769793062546,13.50988486,2719.0,2717.7,0.002]
[1769793062547,13.50988486,2718.5,2717.7,0.002]
[1769793062763,0.91955714,2718.7,2718.2,0.01107808]
[1769793063124,0.91955714,2718.7,2717.8,1e-08]
[1769793063343,0.91955714,2718.7,2717.8,0.01107808]
[1769793063649,0.53687857,2718.6,2717.8,0.01107808]
[1769793063850,0.53687857,2718.6,2718.0,0.01107808]
[1769793064350,0.53687857,2718.6,2718.1,0.01107808]
[1769793064646,0.53687857,2718.6,2718.3,0.01107808]
[1769793064854,0.91962479,2718.5,2717.8,0.01107808]
[1769793065022,0.91962479,2718.5,2718.0,0.01107808]
[1769793065223,1.80097292,2718.5,2717.8,0.01107808]
[1769793065549,1.80097292,2718.5,2718.2,0.01107808]
[1769793065850,3.67795799,2719.1,2718.4,0.01107808]
[1769793066151,17.18784285,2719.1,2718.0,0.01107808]
[1769793069879,0.91990445,2720.7,2720.2,0.01107808]
[1769793070026,0.91990445,2720.7,2720.0,0.01107808]
[1769793070358,0.91990445,2720.7,2719.8,0.01107808]
[1769793070359,1.74698701,2720.7,2719.8,0.01107808]
[1769793070661,15.06668605,2720.7,2719.6,0.01107808]
[1769793071322,1.74698701,2720.7,2720.0,0.01107808]
[1769793071520,15.06668605,2720.7,2719.6,0.01107808]
[1769793072957,15.06668605,2720.7,2719.2,0.01107808]
[1769793073159,13.31969904,2720.5,2719.4,0.01107808]
[1769793073471,13.31969904,2720.5,2719.2,0.01107808]
[1769793074380,13.32069904,2720.5,2719.3,0.01107808]
[1769793074542,13.31969904,2720.3,2719.1,0.01107808]
[1769793074902,13.31969904,2720.3,2719.0,0.01107808]
[1769793075079,13.31969904,2720.3,2719.2,0.01107808]
[1769793075080,13.31969904,2720.1,2719.2,0.01107808]
[1769793075248,15.647819,2720.2,2719.2,0.01107808]
[1769793075941,0.91905006,2720.2,2719.7,0.01107808]
[1769793076251,14.23869251,2720.4,2719.5,0.01107808]
[1769793076572,14.23869251,2720.4,2719.7,0.01107808]
[1769793076573,0.91899347,2720.4,2719.7,0.01107808]
[1769793076780,0.91899347,2720.4,2719.6,0.01107808]
[1769793076936,0.91905006,2720.2,2719.2,0.01107808]
[1769793077140,14.2387491,2720.2,2719.2,0.01107808]
[1769793077403,15.0097491,2720.2,2719.2,0.01107808]
[1769793077584,15.0097491,2720.2,2718.6,0.01107808]
[1769793077873,13.31969904,2719.8,2718.6,0.01107808]
[1769793078035,1.3422099,2719.7,2719.0,0.01107808]
[1769793078437,0.1024,2719.9,2719.0,0.01107808]
[1769793078660,0.1024,2720.1,2719.4,0.01107808]
[1769793079077,14.23881668,2720.0,2719.0,0.01107808]
[1769793079442,14.23881668,2720.0,2719.2,0.01107808]
[1769793079771,14.23881668,2720.0,2719.4,0.01107808]
[1769793079772,0.91911764,2720.0,2719.4,0.01107808]
[1769793080068,0.91911764,2720.0,2719.2,0.01107808]
[1769793080442,0.91911764,2720.0,2719.4,0.01107808]
[1769793082203,0.91911764,2720.0,2719.2,0.01107808]
[1769793082502,0.91911764,2720.0,2719.4,0.01107808]
[1769793082801,0.9189825,2720.4,2719.8,0.01107808]
[1769793083499,1.74616244,2720.4,2719.7,0.01107808]
[1769793083970,13.42209904,2720.3,2718.3,0.91966432]
[1769793084291,13.42209904,2720.3,2718.2,0.002]
[1769793084496,13.31969904,2719.9,2718.2,0.92170616]
[1769793084659,14.65166894,2719.8,2718.2,0.002]
[1769793086001,0.91921903,2719.7,2718.2,0.002]
[1769793086189,14.23891807,2719.7,2718.2,0.002]
[1769793086360,0.001,2719.6,2718.2,0.002]
[1769793086566,0.001,2719.6,2718.3,0.01107808]
[1769793086897,3.49495719,2719.8,2718.5,0.01107808]
[1769793087261,0.7363001,2719.7,2718.5,0.01107808]
[1769793087660,16.99600247,2720.2,2718.5,5.3313265]
[1769793087975,0.91908385,2720.1,2718.5,5.3313265]
[1769793088191,14.23878289,2720.1,2718.4,0.53333265]
[1769793088390,14.23878289,2720.1,2718.3,0.01107808]
[1769793088391,13.31969904,2719.9,2718.3,0.78207808]
[1769793088560,13.31969904,2719.9,2718.2,0.002]
[1769793088766,13.31969904,2719.9,2718.0,0.002]
[1769793088767,13.31969904,2719.9,2718.1,0.771]
[1769793089160,13.31969904,2719.9,2718.0,0.002]
[1769793089361,13.31969904,2719.5,2718.0,0.002]
[1769793089578,13.31969904,2719.3,2718.0,0.002]
[1769793090192,14.23908709,2719.2,2718.0,0.002]
[1769793091602,13.31969904,2718.8,2718.0,0.002]
[1769793091787,13.31969904,2718.7,2716.8,6.31930789]
[1769793091983,13.31969904,2718.7,2717.0,0.92012852]
[1769793092189,13.31969904,2718.4,2716.6,3.69413287]
[1769793092496,13.31969904,2718.4,2717.0,0.01107808]
[1769793093301,13.31969904,2718.2,2716.6,0.002]
[1769793093503,13.31969904,2717.8,2716.6,0.002]
[1769793094011,14.09069904,2717.8,2716.6,0.002]
[1769793094167,13.31969904,2717.5,2716.6,0.002]
[1769793094667,13.31969904,2717.3,2716.1,0.002]
[1769793094864,14.09069904,2717.3,2716.1,0.002]
[1769793095790,0.1024,2717.5,2716.1,0.002]
[1769793095993,0.771,2717.8,2716.2,0.01107808]
[1769793096217,13.31969904,2718.1,2716.2,0.01107808]
[1769793096218,0.1024,2717.9,2716.5,0.92030185]
[1769793096507,0.1024,2717.9,2716.6,0.47233682]
[1769793096705,0.1024,2717.9,2716.6,1.24333682]
[1769793097006,0.1024,2718.0,2716.8,0.01107808]
[1769793097330,13.50457974,2718.0,2716.8,0.01107808]
[1769793097482,13.50457974,2718.0,2716.6,0.46125874]
[1769793097675,13.50457974,2718.0,2716.4,0.93139266]
[1769793097676,14.84461544,2717.9,2716.4,0.93139266]
[1769793098102,13.40217974,2717.7,2716.4,0.01107808]
[1769793098418,13.40217974,2717.7,2716.2,0.92039466]
[1769793098706,13.40217974,2717.7,2716.1,0.002]
[1769793098707,13.40217974,2717.7,2716.4,0.92032766]
[1769793099084,13.40217974,2717.7,2716.4,0.92033439]
[1769793099289,13.40217974,2717.7,2716.7,0.002]
[1769793099510,13.50457974,2717.6,2716.7,0.002]
[1769793099816,13.50457974,2717.6,2716.5,0.002]
[1769793100108,0.9199632,2717.5,2716.5,0.002]
[1769793100297,14.32214294,2717.5,2716.5,0.002]
[1769793101811,13.40217974,2717.3,2716.5,0.002]
[1769793101984,14.91149403,2717.3,2716.5,0.002]
[1769793102181,14.32224451,2717.2,2716.5,0.002]
[1769793102482,14.32224451,2717.2,2716.1,0.002]
[1769793102691,0.92006477,2717.2,2716.1,0.002]
[1769793102890,14.32224451,2717.2,2716.1,0.002]
[1769793103118,16.56762078,2717.2,2716.1,0.002]
[1769793103420,13.40217974,2716.8,2715.4,0.002]
[1769793103582,14.17317974,2716.8,2715.4,0.002]
[1769793104114,0.92030185,2716.5,2715.4,0.002]
[1769793104300,13.40217974,2716.4,2715.4,0.002]
[1769793104682,14.7255661,2716.4,2715.4,0.002]
[1769793104884,13.40217974,2716.0,2715.1,0.002]
[1769793105209,14.17317974,2716.0,2715.1,0.002]
[1769793105818,13.50457974,2715.5,2713.8,0.01107808]
[1769793106118,13.50457974,2715.5,2714.0,0.92114862]
[1769793106287,0.92067467,2715.4,2713.9,0.92118353]
[1769793106481,14.32285441,2715.4,2714.0,0.47279104]
[1769793106811,0.92058745,2715.7,2714.4,0.01107808]
[1769793107181,0.9205616,2715.8,2714.4,0.01107808]
[1769793107430,14.32274134,2715.8,2714.4,0.01107808]
[1769793107723,14.32274134,2715.8,2714.2,0.01107808]
[1769793108183,14.32274134,2715.8,2714.3,0.92104778]
[1769793108386,14.32274134,2715.8,2714.4,0.47270978]
[1769793109020,14.32274134,2715.8,2714.4,0.4616317]
[1769793109214,14.32274134,2715.8,2714.2,0.92107311]
[1769793109414,14.32274134,2715.8,2714.4,0.01107808]
[1769793109415,0.9205616,2715.8,2714.4,0.01107808]
[1769793109797,0.9205616,2715.8,2714.6,0.01107808]
[1769793110113,4.45279501,2716.1,2714.6,0.01107808]
[1769793110114,3.68188869,2716.0,2714.6,0.01107808]
[1769793110315,0.92047128,2716.0,2714.6,0.93200465]
[1769793110617,0.92047128,2716.0,2714.7,0.772]
[1769793110825,0.92047128,2716.0,2714.8,0.92086757]
[1769793110992,0.92047128,2716.0,2714.9,0.53764957]
[1769793111602,0.92047128,2716.0,2714.8,0.01107808]
[1769793111920,0.92047128,2716.0,2714.8,0.93195165]
[1769793113626,0.92046238,2716.1,2714.8,0.93195165]
[1769793113835,17.0826628,2717.1,2715.4,0.01107808]
[1769793114038,3.68048306,2717.1,2715.8,0.01107808]
[1769793114198,3.68048306,2717.1,2715.8,0.78307808]
[1769793114657,13.50457974,2717.5,2715.8,0.78307808]
[1769793114658,0.91999705,2717.4,2716.0,0.01107808]
[1769793114962,0.91999705,2717.4,2716.2,0.01107808]
[1769793115435,14.32217679,2717.4,2715.9,0.92050517]
[1769793115597,14.32217679,2717.4,2715.8,0.772]
[1769793115794,14.32217679,2717.4,2715.8,1.69253473]
[1769793116232,14.32217679,2717.4,2715.9,0.53748236]
[1769793116408,14.32217679,2717.4,2715.6,0.01107808]
[1769793116932,14.32217679,2717.4,2715.7,0.772]
[1769793117336,13.40217974,2717.0,2714.8,0.01107808]
[1769793117501,13.40217974,2716.8,2715.0,0.93187101]
[1769793117709,13.40217974,2716.8,2715.1,0.5387161]
[1769793117899,13.40217974,2716.8,2715.0,0.01107808]
[1769793117900,0.1024,2716.7,2715.0,0.01107808]
[1769793118209,13.40217974,2716.6,2714.9,0.772]
[1769793118405,13.40217974,2716.6,2714.9,1.69284073]
[1769793118746,14.32248159,2716.5,2714.9,0.772]
[1769793119106,14.32248159,2716.5,2715.0,0.01107808]
[1769793119435,16.50121123,2716.5,2715.0,0.01107808]
[1769793119609,0.92030185,2716.5,2715.2,0.01107808]
[1769793121238,13.40217974,2716.5,2715.2,0.01107808]
[1769793121540,13.40217974,2716.5,2714.8,0.01107808]
[1769793121708,0.772,2716.4,2715.0,0.01107808]
[1769793122041,17.08338717,2716.6,2715.1,0.92077182]
[1769793122243,2.07645946,2716.5,2715.2,0.01107808]
[1769793122707,15.4786392,2716.5,2715.2,0.01107808]
[1769793123445,0.92033573,2716.4,2715.2,0.01107808]
[1769793123740,14.32251547,2716.4,2715.2,0.01107808]
[1769793124044,16.69868155,2716.4,2715.0,0.01107808]
[1769793124247,16.69868155,2716.4,2715.1,0.002]
[1769793124433,0.001,2716.3,2715.1,0.002]
[1769793124641,0.001,2716.3,2715.2,0.93181511]
[1769793125264,14.32237997,2716.9,2715.6,0.93168153]
[1769793125426,0.92006477,2717.2,2715.8,0.01107808]
[1769793125752,0.92006477,2717.2,2716.0,0.01107808]
[1769793126622,0.92006477,2717.2,2716.2,0.01107808]
[1769793127622,3.68025909,2717.4,2716.2,0.01107808]
[1769793127827,17.1836681,2717.4,2716.2,0.01107808]
[1769793128021,17.1836681,2717.4,2715.8,0.93159398]
[1769793128022,13.50340901,2717.3,2715.8,0.01107808]
[1769793128435,13.50340901,2717.3,2716.0,0.01107808]
[1769793128943,13.50340901,2717.3,2715.8,0.01107808]
[1769793129138,13.50340901,2717.3,2715.9,0.92049122]
[1769793129339,13.50340901,2717.3,2715.8,0.01107808]
[1769793129656,14.42347378,2717.2,2715.8,0.01107808]
[1769793130154,14.42347378,2717.2,2715.8,0.93161515]
[1769793130865,14.42347378,2717.2,2715.8,0.01107808]
[1769793131165,14.42347378,2717.2,2715.5,0.92062283]
[1769793131454,15.19547378,2717.2,2715.4,0.01107808]
[1769793131655,13.50340901,2717.0,2715.4,0.01107808]
[1769793131860,13.50340901,2716.8,2715.4,0.93175267]
[1769793132056,13.50340901,2716.8,2715.4,0.01107808]
[1769793132257,13.50340901,2716.8,2715.2,0.78307808]
[1769793132461,13.50340901,2716.8,2715.2,1.70381876]
[1769793132661,13.50340901,2716.6,2715.2,1.70381876]
[1769793132966,13.50340901,2716.6,2715.3,0.92070771]
[1769793133159,13.50340901,2716.6,2715.2,1.70379619]
[1769793133358,13.50340901,2716.6,2715.2,1.70379299]
[1769793133662,13.50340901,2716.6,2715.3,0.92070112]
[1769793133876,0.92030185,2716.5,2715.4,0.01107808]
[1769793135578,14.42371086,2716.5,2715.4,0.01107808]
[1769793136572,16.55913768,2716.5,2715.4,0.01107808]
[1769793136755,14.42371086,2716.5,2715.4,0.01107808]
[1769793136939,14.42371086,2716.5,2715.5,0.002]
[1769793137375,14.42371086,2716.5,2715.3,0.92070553]
[1769793137580,14.42371086,2716.5,2715.3,0.92270553]
[1769793137743,14.42371086,2716.5,2715.3,0.002]
[1769793137946,3.79,2716.4,2715.3,0.002]
[1769793138269,3.79,2716.4,2715.3,0.92270421]
[1769793138475,0.92036962,2716.3,2715.3,0.002]
[1769793138654,14.42377863,2716.3,2715.3,0.002]
[1769793139053,14.42377863,2716.3,2715.1,0.002]
[1769793139376,13.50340901,2716.1,2715.1,1e-08]
[1769793140255,13.50340901,2716.1,2714.6,0.002]
[1769793140587,13.50340901,2715.9,2714.6,0.002]
[1769793140758,13.50340901,2715.7,2714.6,0.002]
[1769793141093,13.50340901,2715.7,2713.8,1e-08]
[1769793141094,13.50340901,2715.1,2713.8,1e-08]
[1769793141375,13.50340901,2714.9,2713.8,1e-08]
[1769793141977,13.50340901,2714.5,2713.8,1e-08]
[1769793142178,14.27540901,2714.5,2713.8,1e-08]
[1769793142546,13.50340901,2714.3,2713.8,1e-08]
[1769793142747,15.39145684,2714.3,2713.8,1e-08]
[1769793143160,15.39145684,2714.3,2713.3,0.002]
[1769793144548,0.92108171,2714.2,2713.3,0.002]
[1769793145473,0.92106836,2714.3,2713.4,0.01107808]
[1769793146549,3.68419113,2714.5,2713.4,0.01107808]
[1769793146749,0.92094599,2714.6,2713.4,0.9324273]
[1769793146984,0.92094599,2714.6,2713.6,0.01107808]
[1769793148812,3.68378398,2714.7,2713.6,0.01107808]
[1769793149687,3.68478398,2714.7,2713.6,0.01107808]
[1769793149892,19.44466832,2714.7,2713.5,0.002]
[1769793150306,17.18819299,2714.7,2713.5,0.002]
[1769793150692,3.68478398,2714.7,2713.6,0.93236104]
[1769793151293,0.001,2714.7,2714.0,0.01107808]
[1769793151495,3.68273016,2715.4,2714.2,0.01107808]
[1769793153719,3.68245895,2715.6,2714.2,0.01107808]
[1769793153720,3.79,2715.7,2714.9,0.01107808]
[1769793153875,17.18545778,2715.9,2714.8,0.772]
[1769793153876,0.92055959,2715.8,2714.8,0.772]
[1769793154079,0.92055959,2715.8,2714.9,0.01107808]
[1769793154276,0.92055959,2715.8,2715.1,0.01107808]
[1769793154522,14.4239686,2715.8,2715.1,0.01107808]
[1769793154714,3.79,2715.9,2715.1,0.01107808]
[1769793155118,3.79,2715.9,2715.3,0.01107808]
[1769793155419,0.92020023,2716.8,2715.5,0.01107808]
[1769793155726,0.92018157,2716.9,2715.9,0.92050517]
[1769793155913,0.001,2717.0,2716.0,0.47244346]
[1769793156085,0.92012221,2717.1,2716.0,0.01107808]
[1769793157404,12.63856884,2717.5,2716.2,0.01107808]
[1769793157606,13.55854115,2717.5,2716.6,0.01107808]
[1769793158112,0.91992934,2717.6,2716.6,0.01107808]
[1769793158428,13.55849818,2717.6,2716.6,0.01107808]
[1769793160555,13.45456566,2717.4,2715.6,0.01107808]
[1769793160847,13.45456566,2717.4,2716.0,0.01107808]
[1769793161027,13.45456566,2717.4,2716.2,0.01107808]
[1769793161209,13.45456566,2717.4,2716.4,0.01107808]
[1769793161657,0.92003091,2717.3,2716.4,0.01107808]
[1769793162410,0.9209087,2717.7,2716.4,0.93139991]
[1769793162613,0.001,2717.7,2716.8,0.01107808]
[1769793162811,0.72305389,2719.9,2717.7,0.01107808]
[1769793163152,12.92679421,2719.4,2718.1,0.01107808]
[1769793163323,12.92679421,2719.4,2718.3,0.01107808]
[1769793163528,12.73490535,2719.4,2718.5,0.01107808]
[1769793163736,0.91935424,2719.3,2718.5,0.01107808]
[1769793163946,13.65425959,2719.3,2717.9,0.01107808]
[1769793164145,13.65425959,2719.3,2717.7,0.01107808]
[1769793164146,14.42625959,2719.3,2717.7,0.01107808]
[1769793164350,12.73490535,2719.1,2717.9,0.01107808]
[1769793165449,12.73490535,2719.1,2717.5,0.01107808]
[1769793165641,13.48304353,2718.9,2717.5,0.01107808]
[1769793165843,13.48304353,2718.7,2717.5,0.01107808]
[1769793167443,13.48304353,2718.7,2717.3,0.01107808]
[1769793167660,13.48304353,2718.3,2717.3,0.01107808]
[1769793168760,13.48304353,2718.3,2717.3,0.93110271]
[1769793169165,13.48304353,2718.3,2717.3,0.01107808]
[1769793169828,0.91972628,2718.2,2717.3,0.01107808]
[1769793171131,14.40276981,2718.2,2717.0,0.01107808]
[1769793171322,1.8081675,2718.1,2717.0,0.01107808]
[1769793171650,1.8081675,2718.1,2717.0,0.93120858]
[1769793171958,0.91979396,2718.0,2717.0,0.01107808]
[1769793172341,0.91979396,2718.0,2717.0,0.93120692]
[1769793172659,0.91979396,2718.0,2717.0,0.01107808]
[1769793173454,14.82416889,2718.0,2717.0,0.01107808]
[1769793173975,14.82416889,2718.0,2716.7,0.771]
[1769793174255,14.82416889,2718.0,2716.6,0.01107808]
[1769793174834,14.82416889,2718.0,2716.8,0.01107808]
[1769793175730,13.48304353,2717.8,2716.8,0.01107808]
[1769793175942,14.83144788,2717.7,2716.8,0.01107808]
[1769793176266,14.40297287,2717.6,2716.8,0.01107808]
[1769793176560,15.17397287,2717.6,2716.2,0.002]
[1769793176952,15.17397287,2717.6,2716.3,0.01107808]
[1769793177154,15.37049793,2717.5,2716.3,0.01107808]
[1769793178154,13.48304353,2717.3,2716.2,0.002]
[1769793180133,13.48304353,2716.7,2715.2,0.01107808]
[1769793180360,13.48304353,2716.5,2715.2,0.01107808]
[1769793180562,13.48304353,2716.3,2715.0,0.01107808]
[1769793180863,13.48304353,2716.3,2714.8,0.01107808]
[1769793181435,13.48304353,2716.3,2714.8,0.93195345]
[1769793181632,13.48304353,2716.3,2715.2,0.01107808]
[1769793182173,0.9204035,2716.2,2715.3,0.01107808]
[1769793182558,14.40344703,2716.2,2715.3,0.01107808]
[1769793182865,14.40344703,2716.2,2714.9,0.002]
[1769793182866,13.48304353,2716.0,2714.9,0.002]
[1769793184044,13.48304353,2716.0,2714.3,0.01107808]
[1769793184374,13.48304353,2715.8,2714.3,0.01107808]
[1769793184902,13.48304353,2715.0,2713.3,0.01307808]
[1769793185037,13.48304353,2714.8,2713.4,0.01107808]
[1769793185372,13.48304353,2714.6,2713.4,0.01107808]
[1769793186047,13.48304353,2714.6,2713.3,0.002]
[1769793186244,13.48304353,2714.4,2713.3,0.002]
[1769793186459,12.82447859,2714.2,2713.3,0.002]
[1769793186664,0.1024,2714.3,2712.8,0.773]
[1769793186665,12.82447859,2714.0,2712.8,0.773]
[1769793186862,14.18412645,2714.0,2712.8,0.773]
[1769793187063,14.18412645,2714.0,2712.8,0.002]
[1769793187692,12.82447859,2713.6,2712.5,0.002]
[1769793187889,12.82447859,2713.4,2712.5,0.00100199]
[1769793188066,12.82447859,2713.4,2712.2,0.002]
[1769793188405,0.92145516,2713.1,2712.2,0.002]
[1769793188567,12.82447859,2712.9,2711.5,0.002]
[1769793188753,0.772,2713.0,2711.6,0.92195652]
[1769793189099,0.92145516,2713.1,2712.1,0.01107808]
[1769793190683,0.92121748,2713.8,2712.3,0.01107808]
[1769793190875,13.74569607,2713.8,2712.3,0.01107808]
[1769793191466,15.99320445,2713.8,2712.3,0.01107808]
[1769793191649,13.74569607,2713.8,2712.5,0.01107808]
[1769793192053,0.92121748,2713.8,2712.5,0.01107808]
[1769793192855,12.82447859,2713.8,2712.5,0.93273474]
[1769793193057,13.12583108,2715.3,2714.0,0.01107808]
[1769793193280,16.810701,2715.2,2713.7,0.01107808]
[1769793193593,13.12583108,2715.2,2713.7,0.01107808]
[1769793194200,13.12583108,2715.2,2713.9,0.01107808]
[1769793194400,13.12583108,2715.2,2712.7,0.78307808]
[1769793194401,13.12583108,2715.0,2712.7,0.78307808]
[1769793194607,13.12583108,2715.0,2713.1,0.01107808]
[1769793194776,0.92087814,2714.8,2713.5,0.01107808]
[1769793195423,0.92067467,2715.4,2713.9,0.01107808]
[1769793195605,13.12583108,2715.3,2713.9,0.01107808]
[1769793196113,3.68486992,2715.2,2713.9,0.01107808]
[1769793196266,13.12583108,2715.1,2713.7,0.01107808]
[1769793196467,13.12583108,2715.1,2713.3,3.69649121]
[1769793196468,13.12583108,2715.0,2713.3,0.93244525]
[1769793197098,13.12583108,2715.0,2713.1,0.78307808]
[1769793197099,13.12583108,2714.8,2713.1,0.93250266]
[1769793197301,13.12583108,2714.8,2713.3,0.92138594]
[1769793197466,13.12583108,2714.8,2713.4,0.46069349]
[1769793197671,13.12583108,2714.6,2713.4,0.46069349]
[1769793197889,13.12583108,2714.6,2713.3,0.92138458]
[1769793198069,3.68486992,2714.5,2713.3,0.92138458]
[1769793198887,0.92084422,2714.9,2713.7,0.01107808]
[1769793199076,4.60576643,2714.8,2713.8,0.92121748]
[1769793199477,14.04647184,2715.5,2713.9,0.01107808]
[1769793199689,17.73134176,2715.5,2713.9,0.01107808]
[1769793199887,17.73134176,2715.5,2714.1,0.01107808]
[1769793199888,13.96723418,2715.5,2714.1,0.01107808]
[1769793200363,13.12583108,2715.3,2714.0,0.772]
[1769793201096,0.92077639,2715.1,2714.0,0.772]
[1769793201301,14.04660747,2715.1,2713.7,0.932312]
[1769793201505,14.04660747,2715.1,2713.8,0.92118375]
[1769793201677,3.68486992,2715.0,2713.8,3.68483536]
[1769793201998,16.810701,2715.0,2713.9,0.36959134]
[1769793202206,0.92077639,2715.1,2713.9,0.92115735]
[1769793202207,3.68486992,2714.9,2713.9,0.92115735]
[1769793202404,3.68486992,2714.9,2713.7,0.01107808]
[1769793202405,16.810701,2714.9,2713.7,0.01107808]
[1769793202709,16.810701,2714.9,2713.8,0.92120977]
[1769793203079,16.810701,2714.9,2713.9,0.92118289]
[1769793203406,0.92087814,2714.8,2713.8,0.92119311]
[1769793203608,0.92087814,2714.8,2713.9,0.46172555]
[1769793204116,3.68486992,2714.7,2713.9,0.46172555]
[1769793204607,3.68486992,2714.7,2713.8,0.92119311]
[1769793205919,4.60578235,2714.7,2713.8,0.92119311]
[1769793206101,4.60578235,2714.7,2713.7,3.6960494]
[1769793206102,4.60578235,2714.7,2713.7,0.93230636]
[1769793206608,13.12583108,2714.6,2713.5,1.70437052]
[1769793208196,0.92097992,2714.5,2713.5,0.78307808]
[1769793208510,19.87323647,2714.5,2713.5,1.23104532]
[1769793208673,17.73168092,2714.5,2713.5,0.78307808]
[1769793209078,13.12583108,2714.4,2713.1,0.01107808]
[1769793209575,3.68486992,2714.3,2713.1,0.01107808]
[1769793209808,3.68486992,2714.3,2713.3,0.01107808]
[1769793210008,3.50386992,2714.3,2713.5,0.01107808]
[1769793210313,0.74008171,2714.2,2713.5,0.01107808]
[1769793210613,2.23686992,2714.3,2713.5,0.01107808]
[1769793210907,1.35494525,2714.3,2713.5,0.01107808]
[1769793211204,1.35494525,2714.3,2713.3,0.01107808]
[1769793211412,14.48077633,2714.3,2713.3,0.01107808]
[1769793211777,14.48077633,2714.3,2713.7,0.002]
[1769793211978,1.35494525,2714.3,2713.7,0.002]
[1769793212174,13.12583108,2714.7,2713.7,0.002]
[1769793212377,0.43389402,2714.6,2713.8,0.01107808]
[1769793212615,13.12583108,2715.2,2713.8,0.01107808]
[1769793212804,15.32116007,2715.2,2713.8,0.01107808]
[1769793213491,13.12583108,2715.0,2713.7,0.002]
[1769793213689,13.12583108,2715.0,2713.7,0.774]
[1769793213889,0.43389402,2714.9,2713.7,0.774]
[1769793214092,13.5597251,2714.9,2713.7,0.774]
[1769793214479,1.35474541,2714.9,2713.8,0.01107808]
[1769793215316,1.35474541,2714.9,2714.0,0.01107808]
[1769793215317,0.43389402,2714.9,2714.0,0.01107808]
[1769793215617,16.91583108,2715.4,2714.0,0.01107808]
[1769793215618,13.12583108,2715.2,2714.0,0.01107808]
[1769793215779,13.12583108,2716.6,2715.0,0.01107808]
[1769793216183,13.12583108,2716.4,2715.0,0.01107808]
[1769793216510,14.53476293,2716.4,2715.0,0.01107808]
[1769793217014,14.05315281,2716.3,2715.1,0.92077639]
[1769793217209,14.05315281,2716.3,2714.9,0.772]
[1769793217415,14.05315281,2716.3,2715.0,0.92080224]
[1769793219512,14.05315281,2716.3,2714.9,1.69282284]
[1769793219816,14.05315281,2716.3,2715.0,0.53874009]
[1769793220141,14.05315281,2716.3,2714.2,0.772]
[1769793220417,14.05315281,2716.3,2714.4,0.93206247]
[1769793220617,13.13278319,2716.1,2714.2,0.92106042]
[1769793220817,13.13278319,2715.9,2714.1,0.01107808]
[1769793221005,13.13278319,2715.7,2714.0,0.92112801]
[1769793221212,14.91711542,2715.6,2713.7,0.002]
[1769793221384,13.13278319,2715.4,2713.7,0.002]
[1769793221719,13.13278319,2715.4,2713.8,0.92121625]
[1769793221896,13.13278319,2715.4,2713.9,0.92118133]
[1769793222084,13.13278319,2715.4,2714.0,0.92114884]
[1769793222287,13.13278319,2715.2,2713.9,0.92117739]
[1769793222482,13.13278319,2715.2,2713.8,0.92120712]
[1769793223016,13.13278319,2715.0,2713.7,0.92325142]
[1769793224131,13.90478319,2715.0,2713.7,0.92325142]
[1769793224539,13.90478319,2715.0,2714.6,0.002]
[1769793224836,13.90478319,2715.0,2713.7,0.92325142]
[1769793225038,0.92084422,2714.9,2713.9,0.92118353]
[1769793225414,0.92084422,2714.9,2713.8,1.38332731]
[1769793225717,0.92084422,2714.9,2713.8,0.92119379]
[1769793226120,0.92084422,2714.9,2712.6,0.01107808]
[1769793226121,13.13278319,2714.7,2712.6,0.01107808]
[1769793226307,13.13278319,2714.5,2712.9,1e-08]
[1769793226506,13.13278319,2714.3,2712.9,1e-08]
[1769793226738,14.52326151,2714.3,2712.9,1e-08]
[1769793226935,14.52326151,2714.3,2712.5,0.92165483]
[1769793227135,13.13278319,2714.1,2712.5,0.92165898]
[1769793227339,13.13278319,2714.1,2712.4,4.4607331]
[1769793227340,13.13278319,2714.1,2712.4,1.69566922]
[1769793227536,13.13278319,2714.1,2712.4,0.92366922]
[1769793227740,13.13278319,2713.9,2712.5,0.46105505]
[1769793228044,13.13278319,2713.7,2712.4,0.002]
[1769793229127,13.13278319,2713.7,2712.4,0.92368698]
[1769793229330,13.13278319,2713.5,2712.4,0.002]
[1769793231411,0.92135328,2713.4,2712.4,0.002]
[1769793231847,14.05413647,2713.4,2712.4,0.002]
[1769793232218,17.84413647,2713.4,2712.4,0.002]
[1769793235947,13.13278319,2713.3,2712.4,0.002]
[1769793236324,14.05420439,2713.2,2712.4,0.002]
[1769793236647,14.05420439,2713.2,2712.6,0.002]
[1769793237028,14.05520439,2713.2,2712.6,0.002]
[1769793241555,3.609,2713.4,2712.6,0.002]
[1769793241753,14.05411862,2713.5,2712.6,0.002]
[1769793245343,13.13278319,2713.2,2712.6,0.002]
[1769793245940,0.92138724,2713.3,2712.6,0.002]
[1769793247133,0.92118353,2713.9,2712.6,0.923625]
[1769793247433,0.92118353,2713.9,2712.7,0.47319839]
[1769793247958,14.38021176,2713.9,2712.7,0.46212031]
[1769793248126,15.15221176,2713.9,2712.6,0.923625]
[1769793248769,15.15221176,2713.9,2712.6,0.002]
[1769793248943,0.001,2713.2,2712.6,0.002]
[1769793251465,3.68310208,2713.6,2712.6,0.002]
[1769793251759,14.38034755,2713.5,2712.6,0.002]
[1769793252337,13.45902823,2713.3,2712.6,0.002]
[1769793252841,1.16429261,2713.2,2712.6,0.002]
[1769793253061,13.45902823,2713.1,2712.6,0.002]
[1769793253562,14.380514,2713.1,2712.6,0.002]
[1769793253860,4.84999593,2713.2,2712.6,0.002]
[1769793253861,1.16429261,2713.2,2712.6,0.002]
[1769793254067,0.22515577,2713.2,2712.6,0.002]
[1769793254943,14.38034762,2713.5,2712.6,0.002]
[1769793255681,0.01107808,2714.9,2712.7,1.00801845]
[1769793255878,14.41680108,2715.0,2713.7,0.01107808]
[1769793256181,0.19158411,2714.8,2713.7,0.78307808]
[1769793256348,13.49599077,2714.8,2713.7,0.01107808]
[1769793257235,14.93767088,2714.8,2713.7,0.01107808]
[1769793257638,3.68324125,2715.3,2713.7,0.01107808]
[1769793257639,13.49599077,2715.7,2714.3,0.01107808]
[1769793257834,13.49599077,2715.7,2714.7,0.01107808]
[1769793257835,14.41656921,2715.7,2714.7,0.01107808]
[1769793258039,14.41656921,2715.7,2714.7,0.00905996]
[1769793258278,13.49599077,2715.7,2714.7,0.00905996]
[1769793258457,14.41656579,2715.7,2714.7,0.00905996]
[1769793258642,14.41656579,2715.7,2714.9,0.01107808]
[1769793258840,16.22643826,2715.7,2714.9,0.01107808]
[1769793259043,16.22643826,2715.7,2714.5,0.01107808]
[1769793259743,16.22643826,2715.7,2714.5,0.93205637]
[1769793260344,13.49599077,2715.6,2714.5,0.93205637]